[Event "WWRR B-Group 2024"]
[Site "Wachtebeke"]
[Date "2024.02.14"]
[Round "7.5"]
[White "Kurt, Sascha"]
[Black "Dreelinck, Adriaan"]
[Result "1/2-1/2"]
[ECO "C03"]
[WhiteElo "2002"]
[BlackElo "2205"]
[Annotator "TA"]
[PlyCount "78"]
[EventDate "2024.02.12"]
[EventType "tourn"]
[EventCountry "BEL"]
[SourceTitle "playchess.com"]
[Source "ChessBase"]
[SourceQuality "1"]
[TimeControl "40/5400+30:900+30"]

{[%evp 9,78,18,29,35,28,18,27,22,28,31,27,37,47,19,20,32,22,15,21,15,10,0,14,0,0,0,0,-18,-16,-17,-23,-23,0,-6,0,-24,-16,-16,0,-12,46,47,55,64,53,51,59,0,0,0,0,0,0,0,0,0,0,0,0,0,0,0,0,0,0,0,0,0,0,0,0]} 1. e4 {[%emt 0:00:04]} e6 {[%emt 0:00:06]} 2. d4 {[%emt 0:00:04]} d5 {[%emt 0:00:05]} 3. Nd2 {[%emt 0:00:05]} h6 {[%emt 0:00:15]} 4. c3 {[%emt 0:00:29]} c5 {[%emt 0:00:25]} 5. exd5 {[%emt 0:00:24]} exd5 {[%emt 0:02:23]} 6. Ngf3 {[%emt 0:00:22]} Nf6 {[%emt 0:00:10]} 7. Bb5+ {[%emt 0:00:24]} Bd7 {[%emt 0:00:39]} 8. Bxd7+ {[%emt 0:00:43] White has an edge.} Nbxd7 {[%emt 0:01:45][%cal Bb8d7,Bd7c5,Bc5e4][%mdl 32]} 9. O-O {[%emt 0:00:18]} Be7 {[%emt 0:00:20]} 10. dxc5 {[%emt 0:04:30]} Nxc5 {[%emt 0:01:08]} 11. Nb3 {[%emt 0:01:14]} Nce4 {[%emt 0:02:59]} 12. Bf4 {[%emt 0:01:49]} O-O {[%emt 0:01:20]} 13. Nfd4 {[%emt 0:11:00]} Re8 {[%emt 0:07:58]} 14. Qf3 {[%emt 0:10:55]} Qd7 {[%emt 0:15:09]} 15. Rad1 {[%emt 0:11:38]} a5 {[%emt 0:03:27]} 16. Nd2 {[%emt 0:02:20]} a4 {[%emt 0:06:49]} 17. a3 {[%emt 0:08:30]} Ra6 {[%emt 0:03:17]} 18. Nc2 {[%emt 0:00:33]} Qb5 {[%emt 0:05:02]} 19. Nb4 {[%emt 0:08:16]} Bxb4 {[%emt 0:01:48]} 20. cxb4 {[%emt 0:01:06]} Rae6 {[%emt 0:05:46]} 21. Nxe4 {[%emt 0:01:56]} dxe4 {[%emt 0:05:24][%cal Bd5e4,Be4d3,Bd3c2][%mdl 32]} 22. Qe3 {[%emt 0:07:11]} Rc8 {[%emt 0:16:45]} 23. Qd4 {[%emt 0:02:02] White is weak on the light squares} Rc2 {[%emt 0:03:10]} 24. Rc1 {[%emt 0:03:51]} Qd3 {[%emt 0:03:01]} (24... Re2 $11) 25. Qxd3 $1 $14 {[%emt 0:05:02]} exd3 {[%emt 0:00:13]} 26. Rxc2 {[%emt 0:00:38]} dxc2 {[%emt 0:00:05][%mdl 4096] Endgame. KRB-KRN} 27. Rc1 {[%emt 0:00:16]} Nd5 {[%emt 0:11:07]} 28. Be3 {[%emt 0:03:20]} (28. Bd2 $14) 28... Nxe3 $11 {[%emt 0:02:44] The position is equal.} 29. fxe3 {[%emt 0:00:14]} Rxe3 {[%emt 0:00:04]} 30. Rxc2 {[%emt 0:00:07] KR-KR} Rb3 {[%emt 0:01:09]} 31. Rc8+ {[%emt 0:01:10]} Kh7 {[%emt 0:00:01]} 32. Rc7 {[%emt 0:00:09][%csl LRb7,LRf7]} b5 {[%emt 0:01:04]} 33. Rxf7 {[%emt 0:00:47]} Rxb2 {[%emt 0:00:10]} 34. Rb7 {[%emt 0:00:34]} Ra2 {[%emt 0:00:11]} 35. Rxb5 {[%emt 0:00:07]} Rxa3 {[%emt 0:00:04]} 36. Ra5 {[%emt 0:00:15]} Ra2 {[%emt 0:00:21]} 37. b5 {[%emt 0:00:10]} Kg6 {[%emt 0:00:44]} 38. b6 {[%emt 0:00:13]} Rb2 {[%emt 0:00:22] Prevents Rb5} 39. Rxa4 {[%emt 0:00:03]} Rxb6 {[%emt 0:00:06] Weighted Error Value: White=0.06 (flawless) /Black=0.07 (flawless) .  Mistake:       	White=1     	Black=1      Inaccurate:     	White=1     	---        OK:         	White=17    	Black=16     Best:        	White=1     	---        Strong:       	White=1     	---} 1/2-1/2

[Event "WWRR B-Group 2024"]
[Site "Wachtebeke"]
[Date "2024.02.14"]
[Round "8.1"]
[White "Toulzac, Pierre-Yves"]
[Black "Dreelinck, Adriaan"]
[Result "1/2-1/2"]
[ECO "E90"]
[WhiteElo "2046"]
[BlackElo "2205"]
[Annotator "RC"]
[PlyCount "76"]
[EventDate "2024.02.12"]
[EventType "tourn"]
[EventCountry "BEL"]
[SourceTitle "playchess.com"]
[Source "ChessBase"]
[SourceQuality "1"]
[TimeControl "40/5400+30:900+30"]

1. d4 {[%emt 0:03:16]} Nf6 {[%emt 0:00:07]} 2. c4 {[%emt 0:00:52]} g6 {[%emt 0:00:07]} 3. Nc3 {[%emt 0:00:34]} Bg7 {[%emt 0:00:07]} 4. e4 {[%emt 0:01:44]} d6 {[%emt 0:00:06]} 5. h3 {[%emt 0:01:52]} O-O {[%emt 0:00:06]} 6. Nf3 {[%emt 0:00:55]} e5 {[%emt 0:03:10]} 7. dxe5 {[%emt 0:01:01]} dxe5 {[%emt 0:00:15]} 8. Qxd8 {[%emt 0:00:15]} Rxd8 {[%emt 0:00:05]} 9. Bg5 {[%emt 0:00:13]} c6 {[%emt 0:03:21]} 10. Nxe5 {[%emt 0:02:34]} Re8 {[%emt 0:01:12]} 11. O-O-O {[%emt 0:02:04]} Na6 {[%emt 0:06:31]} 12. f4 {[%emt 0:02:58]} h6 {[%emt 0:02:49]} 13. Bxf6 {[%emt 0:23:39]} Bxf6 {[%emt 0:00:38]} 14. Nf3 {[%emt 0:03:46]} Bxc3 {[%emt 0:02:21]} 15. bxc3 {[%emt 0:00:46]} Rxe4 {[%emt 0:00:13]} 16. Rd8+ {[%emt 0:01:45]} Kg7 {[%emt 0:00:22]} 17. Bd3 {[%emt 0:01:25]} Rxf4 {[%emt 0:07:57]} 18. Re1 {[%emt 0:14:03]} Nc7 {[%emt 0:12:32]} 19. Nd4 {[%emt 0:00:40]} Kf6 {[%emt 0:10:29]} 20. c5 {[%emt 0:14:18]} Rf2 {[%emt 0:09:27]} 21. Bc4 {[%emt 0:01:21]} Bf5 {[%emt 0:13:10]} 22. Rd6+ {[%emt 0:03:18]} Kg5 {[%emt 0:01:52]} 23. Bxf7 {[%emt 0:02:48]} Rxg2 {[%emt 0:05:07]} 24. Nxf5 {[%emt 0:01:37]} Kxf5 {[%emt 0:00:05]} 25. Rf1+ {[%emt 0:00:27]} Ke5 {[%emt 0:01:29]} 26. Bxg6 {[%emt 0:03:21]} Rg8 {[%emt 0:05:37]} 27. Rf5+ {[%emt 0:01:05]} Ke4 {[%emt 0:00:02]} 28. Rg5+ {[%emt 0:00:57]} Rxg6 {[%emt 0:00:29]} 29. Rgxg6 {[%emt 0:00:13]} Rxa2 {[%emt 0:00:13]} 30. Rd4+ {[%emt 0:01:38]} Ke3 {[%emt 0:01:05]} 31. Rxh6 {[%emt 0:00:51]} Rh2 {[%emt 0:01:21]} 32. h4 {[%emt 0:02:01]} Nd5 {[%emt 0:02:17]} 33. Re6+ {[%emt 0:00:08]} Kf3 {[%emt 0:00:05]} 34. Rd3+ {[%emt 0:00:50]} Kg4 {[%emt 0:01:52]} 35. Rg6+ {[%emt 0:01:13]} Kf5 {[%emt 0:01:54]} 36. Rg7 {[%emt 0:01:56]} Rxh4 {[%emt 0:01:26]} 37. Rxb7 {[%emt 0:00:23]} Rc4 {[%emt 0:02:06]} 38. Rxa7 {[%emt 0:00:45]} Ke5 {[%emt 0:07:25]} 1/2-1/2

[Event "WWRR B-Group 2024"]
[Site "Wachtebeke"]
[Date "2024.02.14"]
[Round "8.2"]
[White "Ruzhansky, Elias"]
[Black "Kurt, Sascha"]
[Result "1-0"]
[ECO "B80"]
[WhiteElo "2133"]
[BlackElo "2002"]
[Annotator "RC"]
[PlyCount "107"]
[EventDate "2024.02.12"]
[EventType "tourn"]
[EventCountry "BEL"]
[SourceTitle "playchess.com"]
[Source "ChessBase"]
[SourceQuality "1"]
[TimeControl "40/5400+30:900+30"]

1. e4 {[%emt 0:03:15]} c5 {[%emt 0:00:04]} 2. Nf3 {[%emt 0:00:08]} d6 {[%emt 0:00:03]} 3. d4 {[%emt 0:00:06]} cxd4 {[%emt 0:00:04]} 4. Nxd4 {[%emt 0:00:07]} Nf6 {[%emt 0:00:03]} 5. Nc3 {[%emt 0:00:08]} e6 {[%emt 0:00:01]} 6. Be3 {[%emt 0:00:07]} Be7 {[%emt 0:00:04]} 7. f3 {[%emt 0:00:06]} Nc6 {[%emt 0:00:05]} 8. Qd2 {[%emt 0:00:15]} O-O {[%emt 0:00:04]} 9. g4 {[%emt 0:00:18]} d5 {[%emt 0:00:10]} 10. g5 {[%emt 0:00:17]} Nh5 {[%emt 0:00:06]} 11. Nxc6 {[%emt 0:01:01]} bxc6 {[%emt 0:00:07]} 12. Be2 {[%emt 0:02:21]} d4 {[%emt 0:08:00]} 13. Qxd4 {[%emt 0:00:11]} Qxd4 {[%emt 0:02:20]} 14. Bxd4 {[%emt 0:00:06]} Bxg5 {[%emt 0:00:09]} 15. Rg1 {[%emt 0:03:08]} Bh4+ {[%emt 0:01:57]} 16. Bf2 {[%emt 0:00:07]} Bxf2+ {[%emt 0:04:54]} 17. Kxf2 {[%emt 0:00:04]} Rd8 {[%emt 0:18:35]} 18. Ke3 {[%emt 0:00:55]} Nf6 {[%emt 0:02:12]} 19. Rad1 {[%emt 0:01:51]} Rxd1 {[%emt 0:01:58]} 20. Rxd1 {[%emt 0:00:28]} Kf8 {[%emt 0:00:15]} 21. Na4 {[%emt 0:02:06]} e5 {[%emt 0:06:43]} 22. Nc5 {[%emt 0:02:22]} Ke7 {[%emt 0:01:40]} 23. Bc4 {[%emt 0:01:03]} Rb8 {[%emt 0:05:37]} 24. b3 {[%emt 0:00:48]} Ne8 {[%emt 0:02:19]} 25. a4 {[%emt 0:01:01]} Nc7 {[%emt 0:05:55]} 26. c3 {[%emt 0:03:55]} Be6 {[%emt 0:02:31]} 27. Nxe6 {[%emt 0:05:23]} Nxe6 {[%emt 0:00:10]} 28. b4 {[%emt 0:00:07]} f6 {[%emt 0:03:58]} 29. Rb1 {[%emt 0:05:05]} Nc7 {[%emt 0:02:36]} 30. h4 {[%emt 0:02:51]} h6 {[%emt 0:03:13]} 31. h5 {[%emt 0:01:27]} Ne8 {[%emt 0:05:40]} 32. b5 {[%emt 0:09:39]} Kd6 {[%emt 0:13:46]} 33. Be2 {[%emt 0:06:42]} Kc5 {[%emt 0:02:02]} 34. Rg1 {[%emt 0:02:40]} Rb7 {[%emt 0:05:58]} 35. bxc6 {[%emt 0:00:12]} Re7 {[%emt 0:01:07]} 36. Bb5 {[%emt 0:02:29]} Nc7 {[%emt 0:00:07]} 37. Rd1 {[%emt 0:00:26]} Nxb5 {[%emt 0:02:39]} 38. axb5 {[%emt 0:02:10]} Kxb5 {[%emt 0:00:52]} 39. Rd7 {[%emt 0:00:08]} Re6 {[%emt 0:00:09]} 40. Rxa7 {[%emt 0:00:11]} Rxc6 {[%emt 0:00:10]} 41. Rxg7 {[%emt 0:15:32]} Rxc3+ {[%emt 0:15:07]} 42. Kf2 {[%emt 0:00:06]} Rc8 {[%emt 0:00:00]} 43. Rg6 {[%emt 0:00:00]} Rf8 {[%emt 0:00:00]} 44. Rxh6 {[%emt 0:00:00]} Kc5 {[%emt 0:00:00]} 45. Rg6 {[%emt 0:00:00]} Kd6 {[%emt 0:00:00]} 46. Kg3 {[%emt 0:09:51]} Ke6 {[%emt 0:00:00]} 47. h6 {[%emt 0:05:27]} Rh8 {[%emt 0:03:27]} 48. Kg4 {[%emt 0:00:57]} Rh7 {[%emt 0:00:49]} 49. Kh5 {[%emt 0:00:39]} Kf7 {[%emt 0:00:19]} 50. Rg1 {[%emt 0:00:10]} f5 {[%emt 0:02:25]} 51. Ra1 {[%emt 0:01:16]} fxe4 {[%emt 0:00:00]} 52. Ra7+ {[%emt 0:01:18]} Kg8 {[%emt 0:00:26]} 53. Ra8+ {[%emt 0:00:28]} Kf7 {[%emt 0:00:06]} 54. fxe4 {[%emt 0:00:11]} 1-0

[Event "WWRR B-Group 2024"]
[Site "Wachtebeke"]
[Date "2024.02.14"]
[Round "8.3"]
[White "Verduyn, Frederic"]
[Black "Dreelinck, Jacob"]
[Result "1/2-1/2"]
[ECO "B00"]
[WhiteElo "2087"]
[BlackElo "2196"]
[Annotator "RC"]
[PlyCount "72"]
[EventDate "2024.02.12"]
[EventType "tourn"]
[EventCountry "BEL"]
[SourceTitle "playchess.com"]
[Source "ChessBase"]
[SourceQuality "1"]
[TimeControl "40/5400+30:900+30"]

1. d4 {[%emt 0:00:40]} a6 {[%emt 0:00:02]} 2. e4 {[%emt 0:01:16]} h6 {[%emt 0:00:04]} 3. f4 {[%emt 0:03:21]} e6 {[%emt 0:00:17]} 4. Nf3 {[%emt 0:00:45]} d5 {[%emt 0:00:03]} 5. e5 {[%emt 0:04:15]} Ne7 {[%emt 0:00:39]} 6. Bd3 {[%emt 0:01:28]} Nf5 {[%emt 0:00:06]} 7. O-O {[%emt 0:05:42]} c5 {[%emt 0:00:20]} 8. Bxf5 {[%emt 0:01:33]} exf5 {[%emt 0:00:06]} 9. Kh1 {[%emt 0:02:43]} Be6 {[%emt 0:03:09]} 10. Be3 {[%emt 0:01:39]} c4 {[%emt 0:03:10]} 11. Qe2 {[%emt 0:08:57]} Nc6 {[%emt 0:00:21]} 12. Rd1 {[%emt 0:03:11]} Be7 {[%emt 0:00:56]} 13. b3 {[%emt 0:02:22]} b5 {[%emt 0:06:21]} 14. a4 {[%emt 0:01:34]} Kd7 {[%emt 0:02:39]} 15. bxc4 {[%emt 0:04:45]} bxc4 {[%emt 0:00:07]} 16. Nbd2 {[%emt 0:02:26]} Na5 {[%emt 0:01:20]} 17. Nf1 {[%emt 0:06:12]} Bb4 {[%emt 0:20:23]} 18. Bd2 {[%emt 0:03:40]} Rb8 {[%emt 0:07:16]} 19. Rab1 {[%emt 0:03:54]} Qe7 {[%emt 0:07:50]} 20. Qe1 {[%emt 0:03:44]} Nc6 {[%emt 0:04:25]} 21. Ne3 {[%emt 0:01:38]} Kc7 {[%emt 0:02:32]} 22. c3 {[%emt 0:06:17]} Ba5 {[%emt 0:03:44]} 23. h3 {[%emt 0:04:15]} h5 {[%emt 0:01:18]} 24. Rxb8 {[%emt 0:02:12]} Rxb8 {[%emt 0:00:08]} 25. Rb1 {[%emt 0:00:55]} Rxb1 {[%emt 0:03:34]} 26. Qxb1 {[%emt 0:00:06]} g6 {[%emt 0:00:12]} 27. Qb2 {[%emt 0:02:21]} Bb6 {[%emt 0:04:42]} 28. Bc1 {[%emt 0:02:16]} Na5 {[%emt 0:01:02]} 29. Qa2 {[%emt 0:01:29]} Kc6 {[%emt 0:02:20]} 30. Ba3 {[%emt 0:00:56]} Qb7 {[%emt 0:01:26]} 31. Bf8 {[%emt 0:05:54]} Bd8 {[%emt 0:04:17]} 32. Nd2 {[%emt 0:05:12]} Be7 {[%emt 0:01:53]} 33. Bxe7 {[%emt 0:00:46]} Qxe7 {[%emt 0:00:02]} 34. Qb2 {[%emt 0:01:23]} Qb7 {[%emt 0:00:42]} 35. Qa3 {[%emt 0:00:31]} Qc7 {[%emt 0:06:45]} 36. Nf3 {[%emt 0:01:37]} Nb7 {[%emt 0:04:39]} 1/2-1/2

[Event "WWRR B-Group 2024"]
[Site "Wachtebeke"]
[Date "2024.02.14"]
[Round "8.4"]
[White "Nemegeer, Arne"]
[Black "Raptis, Filippos"]
[Result "1/2-1/2"]
[ECO "B06"]
[WhiteElo "2100"]
[BlackElo "2174"]
[Annotator "TA"]
[PlyCount "43"]
[EventDate "2024.02.12"]
[EventType "tourn"]
[EventCountry "BEL"]
[SourceTitle "playchess.com"]
[Source "ChessBase"]
[SourceQuality "1"]
[TimeControl "40/5400+30:900+30"]

{[%evp 18,43,35,30,32,20,32,27,39,20,63,55,191,203,200,203,201,179,147,60,106,126,112,106,147,42,156,77]} 1. e4 {[%emt 0:00:01]} d6 {[%emt 0:00:11]} 2. d4 {[%emt 0:00:05]} Nf6 {[%emt 0:00:04]} 3. Nc3 {[%emt 0:00:03]} g6 {[%emt 0:00:04]} 4. Be3 {[%emt 0:00:05]} a6 {[%emt 0:00:04]} 5. Qd2 {[%emt 0:00:50]} b5 {[%emt 0:00:07]} 6. f3 {[%emt 0:00:19]} Bb7 {[%emt 0:00:33]} 7. O-O-O {[%emt 0:00:28]} Nbd7 {[%emt 0:00:27][%cal Bb8d7,Bd7b6,Bb6c4][%mdl 32]} 8. h4 {[%emt 0:00:13]} h5 {[%emt 0:00:08]} 9. Nh3 {[%emt 0:00:16]} Bg7 {[%emt 0:00:39]} 10. Ng5 {[%emt 0:00:27][%cal Oe4e5]} e6 {[%emt 0:00:08]} 11. Kb1 {[%emt 0:01:00]} Qe7 {[%emt 0:00:24]} 12. Rg1 {[%emt 0:03:19]} Nb6 {[%emt 0:06:10] White has an edge.} 13. Bd3 {[%emt 0:00:20]} b4 {[%emt 0:08:53]} 14. Ne2 {[%emt 0:00:52]} d5 {[%emt 0:03:16]} (14... a5 $14) 15. e5 $18 {[%emt 0:15:31]} Nfd7 {[%emt 0:00:29]} 16. Nf4 {[%emt 0:00:32]} Nc4 {[%emt 0:02:25]} 17. Qe2 {[%emt 0:02:37][%cal Od3g6] And now Bxg6! would win.} Nxe3 {[%emt 0:00:50]} 18. Qxe3 {[%emt 0:00:04]} (18. Bxg6 $1 $16 fxg6 (18... Nxd1 $2 {too greedy.} 19. Bxf7+ $18) 19. Nxg6 Nxd1 (19... b3 $2 20. axb3 Nxd1 21. Nxe7 $18) 20. Rxd1 (20. Nxe7 Kxe7 21. Qd3 Rh6 $18)) 18... Bh6 {[%emt 0:03:03]} (18... Nf8 $14) 19. g4 {[%emt 0:02:41] White has more active pieces.} Bxg5 {[%emt 0:01:48]} 20. hxg5 {[%emt 0:00:15] gxh5 would now be deadly.} hxg4 {[%emt 0:01:36] [#]} 21. Rxg4 {[%emt 0:00:52]} ({Much less strong is} 21. fxg4 $6 Qxg5 22. Qf2 O-O-O $14) ({White should play} 21. Bxg6 $1 $16 {[%cal Og1g4] Threatens to win with Rxg4!} fxg6 22. Nxg6 (22. Rxg4 $2 Nf8 $17)) 21... O-O-O {[%emt 0:04:11] [#]} ({Better is} 21... Rg8 $14) 22. Qe2 {[%emt 0:11:37] Weighted Error Value: White=0.22 (precise) /Black=0.39.  Mistake:       	White=3     	Black=3      Inaccurate:     	---       	Black=2      OK:         	White=3     	Black=4      Best:        	White=1     	---} (22. Bxg6 $142 $1 fxg6 23. Nxg6) 1/2-1/2

[Event "WWRR B-Group 2024"]
[Site "Wachtebeke"]
[Date "2024.02.14"]
[Round "8.5"]
[White "Schrik, Rachid"]
[Black "Vandenhole, Kobe"]
[Result "1/2-1/2"]
[ECO "D31"]
[WhiteElo "2179"]
[BlackElo "2081"]
[Annotator "RC"]
[PlyCount "58"]
[EventDate "2024.02.12"]
[EventType "tourn"]
[EventCountry "BEL"]
[SourceTitle "playchess.com"]
[Source "ChessBase"]
[SourceQuality "1"]
[TimeControl "40/5400+30:900+30"]

1. d4 {[%emt 0:00:41]} d5 {[%emt 0:00:11]} 2. c4 {[%emt 0:00:40]} e6 {[%emt 0:00:05]} 3. Nc3 {[%emt 0:00:52]} a6 {[%emt 0:00:07]} 4. cxd5 {[%emt 0:01:58]} exd5 {[%emt 0:00:07]} 5. Qb3 {[%emt 0:01:59]} c5 {[%emt 0:01:26]} 6. Qxd5 {[%emt 0:02:03]} cxd4 {[%emt 0:03:49]} 7. Qxd8+ {[%emt 0:02:35]} Kxd8 {[%emt 0:00:10]} 8. Nd5 {[%emt 0:00:23]} Be6 {[%emt 0:01:24]} 9. Nf4 {[%emt 0:01:08]} Nc6 {[%emt 0:04:06]} 10. Nxe6+ {[%emt 0:10:38]} fxe6 {[%emt 0:00:05]} 11. Bg5+ {[%emt 0:00:26]} Be7 {[%emt 0:06:04]} 12. Nf3 {[%emt 0:03:00]} Bxg5 {[%emt 0:04:06]} 13. Nxg5 {[%emt 0:00:15]} Ke7 {[%emt 0:00:11]} 14. g3 {[%emt 0:02:29]} Nf6 {[%emt 0:08:22]} 15. Bg2 {[%emt 0:11:17]} Rac8 {[%emt 0:10:55]} 16. O-O {[%emt 0:08:40]} Rhd8 {[%emt 0:02:11]} 17. Rac1 {[%emt 0:08:16]} h6 {[%emt 0:04:53]} 18. Ne4 {[%emt 0:01:16]} Nxe4 {[%emt 0:01:22]} 19. Bxe4 {[%emt 0:00:04]} Rc7 {[%emt 0:05:36]} 20. Rfd1 {[%emt 0:03:07]} Rd6 {[%emt 0:01:38]} 21. Rc5 {[%emt 0:05:41]} Rcd7 {[%emt 0:07:33]} 22. a3 {[%emt 0:06:03]} Kf6 {[%emt 0:07:43]} 23. Rdc1 {[%emt 0:15:05]} Ne7 {[%emt 0:01:37]} 24. h4 {[%emt 0:01:37]} b6 {[%emt 0:00:46]} 25. Rc7 {[%emt 0:04:36]} Rxc7 {[%emt 0:07:04]} 26. Rxc7 {[%emt 0:00:04]} Ng6 {[%emt 0:01:05]} 27. f4 {[%emt 0:02:21]} Nf8 {[%emt 0:06:04]} 28. h5 {[%emt 0:01:04]} e5 {[%emt 0:02:30]} 29. fxe5+ {[%emt 0:03:16]} Kxe5 {[%emt 0:13:50]} 1/2-1/2

[Event "WWRR B-Group 2024"]
[Site "Wachtebeke"]
[Date "2024.02.15"]
[Round "9.1"]
[White "Vandenhole, Kobe"]
[Black "Toulzac, Pierre-Yves"]
[Result "1/2-1/2"]
[ECO "C47"]
[WhiteElo "2081"]
[BlackElo "2046"]
[Annotator "NA RC"]
[PlyCount "102"]
[EventDate "2024.02.12"]
[EventType "tourn"]
[EventCountry "BEL"]
[SourceTitle "playchess.com"]
[Source "ChessBase"]
[SourceQuality "1"]
[TimeControl "40/5400+30:900+30"]

1. e4 {[%emt 0:00:06]} e5 {[%emt 0:00:59]} 2. Nf3 {[%emt 0:00:10]} Nc6 {[%emt 0:00:12]} 3. Nc3 {[%emt 0:00:25]} Nf6 {[%emt 0:00:08]} 4. h3 {[%emt 0:00:06]} Bb4 {[%emt 0:08:53]} 5. Bd3 {[%emt 0:00:15]} O-O {[%emt 0:00:37]} 6. O-O {[%emt 0:01:04]} a6 {[%emt 0:01:21]} 7. Nd5 {[%emt 0:05:28]} Bc5 {[%emt 0:01:17]} 8. c3 {[%emt 0:04:33]} d6 {[%emt 0:07:34]} 9. Bc2 {[%emt 0:01:16]} Nxd5 {[%emt 0:03:01]} 10. exd5 {[%emt 0:00:03]} Ne7 {[%emt 0:00:13]} 11. d4 {[%emt 0:02:19]} exd4 {[%emt 0:01:22]} 12. cxd4 {[%emt 0:06:01]} Ba7 {[%emt 0:01:27]} 13. Re1 {[%emt 0:00:45]} Nxd5 {[%emt 0:10:44]} 14. Qd3 {[%emt 0:03:58]} f5 {[%emt 0:01:59]} 15. Bb3 {[%emt 0:00:57]} c6 {[%emt 0:00:16]} 16. Bg5 {[%emt 0:01:01]} Qa5 {[%emt 0:03:46]} 17. Be7 {[%emt 1:10:33]} Re8 {[%emt 0:00:15]} 18. Bxd6 {[%emt 0:00:00]} Bd7 {[%emt 0:00:26]} 19. Ne5 {[%emt 0:00:00]} Be6 {[%emt 0:01:49]} 20. Nc4 {[%emt 0:00:00]} Qd8 {[%emt 0:03:10]} 21. Be5 {[%emt 0:00:00]} Qg5 {[%emt 0:03:53]} 22. Ne3 {[%emt 0:00:00]} Rad8 {[%emt 0:07:11]} 23. Rad1 {[%emt 0:00:00]} g6 {[%emt 0:03:01]} 24. g3 {[%emt 0:00:00]} Rd7 {[%emt 0:07:46]} 25. Nxd5 {[%emt 0:00:00]} Bxd5 {[%emt 0:00:30]} 26. Bf4 {[%emt 0:00:00]} Qd8 {[%emt 0:00:52]} 27. h4 {[%emt 0:00:00]} Rde7 {[%emt 0:12:31]} 28. Rxe7 {[%emt 0:00:00]} Qxe7 {[%emt 0:00:35]} 29. Bxd5+ {[%emt 0:00:00]} cxd5 {[%emt 0:00:02]} 30. Qb3 {[%emt 0:00:00]} Qe4 {[%emt 0:03:03]} 31. Be5 {[%emt 0:00:00]} Re7 {[%emt 0:02:52]} 32. Qc3 {[%emt 0:00:00]} Qe2 {[%emt 0:04:48]} 33. Re1 {[%emt 0:00:00]} Qc4 {[%emt 0:01:28]} 34. Rc1 {[%emt 0:00:00]} Qxc3 {[%emt 0:02:13]} 35. Rxc3 {[%emt 0:00:00]} Kf7 {[%emt 0:00:23]} 36. Kg2 {[%emt 0:00:00]} Bb6 {[%emt 0:01:34]} 37. Kf3 {[%emt 0:00:00]} Ke6 {[%emt 0:02:08]} 38. Kf4 {[%emt 0:00:00]} Bd8 {[%emt 0:02:00]} 39. Kg5 {[%emt 0:00:00]} Rf7+ {[%emt 0:01:11]} 40. Kh6 {[%emt 0:00:00]} Be7 {[%emt 0:00:08]} 41. Re3 {[%emt 0:10:10]} Kd7 {[%emt 0:17:26]} 42. Rc3 {[%emt 0:02:52]} Bf8+ {[%emt 0:00:35]} 43. Kg5 {[%emt 0:00:59]} Be7+ {[%emt 0:00:33]} 44. Kf4 {[%emt 0:00:26]} Bd8 {[%emt 0:00:22]} 45. Rc5 {[%emt 0:00:55]} Ke6 {[%emt 0:00:14]} 46. Rc8 {[%emt 0:00:24]} Rd7 {[%emt 0:00:17]} 47. a4 {[%emt 0:06:24]} h6 {[%emt 0:00:43]} 48. Ke3 {[%emt 0:00:41]} Kf7 {[%emt 0:01:08]} 49. Kd3 {[%emt 0:00:48]} Ke6 {[%emt 0:00:00]} 50. Bg7 {[%emt 0:00:00]} Bxh4 {[%emt 0:00:00]} 51. Bxh6 {[%emt 0:00:00]} Bf6 {[%emt 0:00:00]} 1/2-1/2

[Event "WWRR B-Group 2024"]
[Site "Wachtebeke"]
[Date "2024.02.15"]
[Round "9.2"]
[White "Raptis, Filippos"]
[Black "Schrik, Rachid"]
[Result "1/2-1/2"]
[ECO "D04"]
[WhiteElo "2174"]
[BlackElo "2179"]
[Annotator "NA RC"]
[PlyCount "66"]
[EventDate "2024.02.12"]
[EventType "tourn"]
[EventCountry "BEL"]
[SourceTitle "playchess.com"]
[Source "ChessBase"]
[SourceQuality "1"]
[TimeControl "40/5400+30:900+30"]

1. d4 {[%emt 0:04:23]} Nf6 {[%emt 0:00:11]} 2. Nf3 {[%emt 0:00:06]} d5 {[%emt 0:00:18]} 3. e3 {[%emt 0:00:15]} g6 {[%emt 0:04:40]} 4. b3 {[%emt 0:00:47]} Bg7 {[%emt 0:01:06]} 5. Bb2 {[%emt 0:00:39]} O-O {[%emt 0:03:14]} 6. Be2 {[%emt 0:00:51]} Ne4 {[%emt 0:08:47]} 7. O-O {[%emt 0:03:18]} b6 {[%emt 0:04:12]} 8. Nbd2 {[%emt 0:02:30]} Bb7 {[%emt 0:05:59]} 9. c4 {[%emt 0:13:00]} e6 {[%emt 0:04:08]} 10. Rc1 {[%emt 0:05:08]} Nd7 {[%emt 0:08:53]} 11. Nxe4 {[%emt 0:04:52]} dxe4 {[%emt 0:00:03]} 12. Nd2 {[%emt 0:01:42]} c5 {[%emt 0:10:20]} 13. Qc2 {[%emt 0:07:24]} f5 {[%emt 0:04:40]} 14. dxc5 {[%emt 0:02:09]} Nxc5 {[%emt 0:02:41]} 15. Bxg7 {[%emt 0:00:41]} Kxg7 {[%emt 0:00:03]} 16. Rcd1 {[%emt 0:00:45]} Qe7 {[%emt 0:10:06]} 17. b4 {[%emt 0:04:30]} Na6 {[%emt 0:07:04]} 18. a3 {[%emt 0:00:10]} Rfd8 {[%emt 0:00:41]} 19. Nb3 {[%emt 0:00:41]} Nc7 {[%emt 0:01:00]} 20. Nd4 {[%emt 0:13:17]} e5 {[%emt 0:01:31]} 21. Nb5 {[%emt 0:01:03]} Nxb5 {[%emt 0:01:21]} 22. cxb5 {[%emt 0:00:04]} f4 {[%emt 0:00:29]} 23. exf4 {[%emt 0:01:59]} exf4 {[%emt 0:00:55]} 24. Rxd8 {[%emt 0:02:09]} Rxd8 {[%emt 0:00:18]} 25. Rd1 {[%emt 0:00:38]} Rxd1+ {[%emt 0:05:48]} 26. Qxd1 {[%emt 0:00:44]} g5 {[%emt 0:06:07]} 27. Qd4+ {[%emt 0:10:33]} Kh6 {[%emt 0:00:27]} 28. a4 {[%emt 0:00:47]} e3 {[%emt 0:00:52]} 29. f3 {[%emt 0:07:05]} Qg7 {[%emt 0:01:26]} 30. Qd6+ {[%emt 0:00:34]} Qg6 {[%emt 0:01:26]} 31. Qf8+ {[%emt 0:04:17]} Qg7 {[%emt 0:01:29]} 32. Qd6+ {[%emt 0:00:37]} Qg6 {[%emt 0:00:07]} 33. Qf8+ {[%emt 0:01:05]} Qg7 {[%emt 0:00:04]} 1/2-1/2